bitfinex/quotes_ETHUSD_20250413
["timestamp","ask_amount","ask_price","bid_price","bid_amount"]
[1744573815152,1.527,1590.6,1590.3,6.28796]
[1744573815355,1.527,1590.6,1590.4,6.28751]
[1744573815671,1.527,1590.6,1590.5,6.28733]
[1744573816184,12.205,1590.8,1590.7,6.28654]
[1744573816879,12.205,1590.8,1590.5,6.28728]
[1744573817081,12.205,1590.8,1590.1,6.28891]
[1744573817082,12.205,1590.8,1590.4,6.28737]
[1744573817282,12.205,1590.8,1590.7,6.28654]
[1744573817815,55.5484,1591.0,1590.9,6.28575]
[1744573817816,1.5884,1591.0,1590.9,6.28575]
[1744573818016,12.204,1591.3,1590.9,6.28555]
[1744573818177,6.28458,1591.2,1590.8,6.28594]
[1744573818377,18.48844,1591.3,1590.8,6.28594]
[1744573818711,12.204,1591.3,1591.0,6.28519]
[1744573819116,12.204,1591.3,1591.0,6.28535]
[1744573819117,0.00890396,1591.1,1591.0,6.28535]
[1744573819577,12.204,1591.3,1590.9,6.28575]
[1744573819777,0.55,1591.2,1590.5,6.28695]
[1744573819977,6.28515,1591.1,1590.5,6.28733]
[1744573820183,6.28458,1591.2,1590.8,12.57192]
[1744573820391,12.56938,1591.2,1590.8,6.28595]
[1744573820594,24.77265,1591.3,1590.9,6.28551]
[1744573820798,12.204,1591.3,1591.1,6.28474]
[1744573820995,18.48817,1591.3,1590.8,6.28611]
[1744573821224,12.204,1591.3,1590.8,6.28594]
[1744573821396,0.55,1591.1,1590.4,0.628797]
[1744573821584,6.28536,1591.0,1590.5,6.28718]
[1744573821782,1.6067,1591.0,1590.0,6.2893]
[1744573822129,3.0,1590.9,1590.5,6.28719]
[1744573822280,6.28604,1590.9,1590.5,6.28713]
[1744573822622,6.28773,1590.4,1590.0,6.28916]
[1744573822827,12.57578,1590.4,1590.0,6.918076]
[1744573823014,11.865,1590.5,1590.1,6.28891]
[1744573823227,1.6067,1590.8,1590.6,6.28676]
[1744573823389,1.6067,1591.2,1591.1,6.28496]
[1744573823595,6.30404,1591.4,1591.0,6.28521]
[1744573823901,0.02,1591.4,1591.0,6.28524]
[1744573824323,0.02,1591.4,1591.0,6.28517]
[1744573824841,1.6749,1592.4,1591.6,1.625]
[1744573825135,1.6749,1592.4,1592.1,6.28081]
[1744573825354,7.95472,1592.4,1591.7,6.28243]
[1744573825489,6.28049,1592.3,1591.8,6.28202]
[1744573825685,6.28049,1592.3,1591.5,6.28336]
[1744573825686,6.28159,1592.0,1591.6,6.28277]
[1744573825928,6.28259,1591.7,1591.3,6.28417]
[1744573826085,0.11862812,1591.6,1591.3,6.28417]
[1744573826290,4.6549,1591.9,1591.6,6.28292]
[1744573826494,0.30150446,1591.8,1591.5,6.28338]
[1744573826693,10.93686,1591.9,1591.5,6.28338]
[1744573826694,17.21895,1591.9,1591.5,6.28338]
[1744573826929,6.28273,1591.7,1591.3,12.56832]
[1744573827127,1.6549,1591.9,1591.5,6.28303]
[1744573827330,6.58372446,1591.8,1591.4,6.28375]
[1744573827536,0.30150446,1591.8,1591.4,1.17391708]
[1744573827701,4.6549,1591.9,1591.7,6.28259]
[1744573827702,1.6549,1591.9,1591.7,6.28259]
[1744573827903,1.6549,1591.9,1591.8,6.28219]
[1744573828101,1.6563,1592.3,1591.6,6.28298]
[1744573828306,1.6563,1592.3,1592.1,6.28079]
[1744573828517,0.02,1592.4,1592.1,6.28075]
[1744573828717,0.02,1592.4,1592.2,6.28039]
[1744573829102,0.30150446,1592.3,1592.2,6.28039]
[1744573829507,0.30150446,1592.3,1592.1,6.28075]
[1744573830024,6.28069,1592.2,1591.7,6.28258]
[1744573830209,6.28157,1592.0,1591.6,6.28273]
[1744573830421,6.28118,1592.1,1591.7,6.28242]
[1744573830601,0.30150446,1591.9,1591.6,6.28273]
[1744573830944,0.30150446,1591.8,1591.6,6.28292]
[1744573831112,6.28194,1591.9,1591.5,6.28335]
[1744573831318,6.58373446,1591.8,1591.3,12.56815]
[1744573831643,6.58373446,1591.8,1590.9,6.28553]
[1744573831644,6.28408,1591.4,1590.9,6.28553]
[1744573831851,8.07149566,1591.8,1590.8,6.28614]
[1744573832144,8.07149566,1591.8,1591.3,6.28392]
[1744573832145,0.17431566,1591.7,1591.3,6.28392]
[1744573832343,7.00717566,1591.7,1591.2,6.28453]
[1744573832646,6.28372,1591.5,1591.0,6.28519]
[1744573832948,3.0,1591.6,1591.2,12.56868]
[1744573833248,6.28378,1591.4,1591.0,6.28535]
[1744573833453,0.17431566,1591.5,1590.9,6.28575]
[1744573833752,0.17431566,1591.4,1591.3,12.56785]
[1744573834045,3.0,1591.6,1591.3,6.28413]
[1744573834200,0.1711126,1591.4,1591.2,12.56892]
[1744573834407,3.0,1591.6,1591.2,12.56892]
[1744573834604,0.17038915,1591.3,1591.2,12.56892]
[1744573834848,3.0,1591.6,1591.1,6.28492]
[1744573835031,0.17038915,1591.3,1591.0,12.57032]
[1744573835247,6.28437,1591.3,1590.8,6.2859]
[1744573835558,1.78529251,1591.2,1590.7,6.28653]
[1744573835728,6.28507,1591.1,1590.7,6.28653]
[1744573835930,8.07024251,1591.2,1590.8,6.28589]
[1744573835931,1.6148,1591.2,1590.8,6.28589]
[1744573836116,0.17049251,1591.1,1590.7,6.28652]
[1744573836317,1.6148,1591.2,1590.6,6.34977642]
[1744573836517,0.17049251,1591.1,1590.6,0.06285642]
[1744573836742,6.45548251,1591.1,1590.7,6.28651]
[1744573837135,6.45548251,1591.1,1590.5,6.28724]
[1744573837524,12.74076251,1591.1,1590.5,6.28724]
[1744573837723,12.74076251,1591.1,1590.2,6.28833]
[1744573837724,6.28575,1590.9,1590.2,6.28833]
[1744573837948,3.55,1591.0,1590.3,6.28806]
[1744573838147,3.55,1591.0,1590.2,6.2885]
[1744573838148,6.28658,1590.7,1590.2,6.2885]
[1744573838370,6.28737,1590.5,1589.9,11.16349745]
[1744573838529,6.28737,1590.5,1589.5,5.419905]
[1744573838530,6.28812,1590.3,1589.7,6.29045]
[1744573838863,6.28812,1590.3,1589.5,6.945705]
[1744573839046,0.17049251,1590.2,1589.5,6.945705]
[1744573839225,6.45939251,1590.2,1589.6,6.29085]
[1744573839430,6.28891,1590.1,1589.6,6.29085]
[1744573839630,6.45940251,1590.1,1589.5,13.236955]
[1744573839830,0.17049251,1590.1,1589.5,8.8985655]
[1744573840030,6.45945251,1590.1,1589.6,6.29072]
[1744573840259,0.55,1590.5,1589.7,6.29049]
[1744573840442,0.15301551,1590.0,1589.9,6.2897]
[1744573840653,6.28824,1590.3,1589.8,12.57981]
[1744573840927,6.28854,1590.2,1589.7,6.29049]
[1744573841167,0.15301551,1590.1,1589.7,0.629049]
[1744573841368,6.28788,1590.4,1589.9,6.2897]
[1744573841672,6.44150551,1590.3,1589.8,6.29006]
[1744573841870,6.44150551,1590.3,1589.8,12.57996]
[1744573842054,12.72988551,1590.3,1589.8,12.57996]
[1744573842570,6.28866,1590.2,1589.8,6.35278447]
[1744573842772,6.28816,1590.3,1589.9,6.28949]
[1744573842974,6.28816,1590.3,1589.5,7.81691]
[1744573842975,6.44158551,1590.2,1589.5,7.81691]
[1744573843183,6.28983,1589.9,1589.5,12.58225]
[1744573843473,0.13967223,1589.8,1589.5,6.29111]
[1744573843855,0.13967223,1589.8,1589.4,3.0]
[1744573844080,0.13967223,1589.8,1589.7,6.29049]
[1744573844372,1.5247,1590.4,1589.9,6.28932]
[1744573844373,7.81243,1590.4,1589.9,6.28932]
[1744573844551,7.81243,1590.4,1590.0,6.28911]
[1744573844742,6.28815,1590.3,1590.0,0.0628833]
[1744573844950,12.5765,1590.3,1590.0,0.0628833]
[1744573845140,6.28815,1590.3,1590.0,0.0628833]
[1744573845338,6.28672,1590.7,1590.0,9.05077638]
[1744573845544,12.57251,1590.8,1590.4,6.28743]
[1744573845953,3.0,1590.7,1590.4,6.28743]
[1744573846289,7.81064,1590.9,1590.5,6.34997498]
[1744573846441,6.28667,1590.7,1590.3,6.28794]
[1744573846769,6.28615,1590.8,1590.5,6.2873]
[1744573846980,60.1901,1591.1,1590.7,12.57284]
[1744573847184,60.1901,1591.1,1590.8,6.34896487]
[1744573847334,6.28381,1591.4,1591.0,6.28528]
[1744573847541,6.28381,1591.4,1591.0,6.28515]
[1744573847738,6.28387,1591.4,1591.0,6.914507]
[1744573847945,6.28297,1591.7,1591.3,6.28394]
[1744573848151,1.6115,1591.9,1591.4,0.06283354]
[1744573848353,6.28265,1591.7,1591.3,6.28412]
[1744573848588,3.0,1592.0,1591.6,6.28278]
[1744573848793,6.28222,1591.8,1591.4,12.55824604]
[1744573848962,6.28222,1591.8,1591.4,6.27469604]
[1744573849162,6.28217,1591.9,1591.5,6.28337]
[1744573849354,0.1300798,1591.8,1591.6,6.34577368]
[1744573849552,6.28145,1592.0,1591.6,6.34577368]
[1744573849860,0.1300798,1591.9,1591.6,6.34561368]
[1744573850386,0.1300798,1591.9,1591.8,6.28219]
[1744573850688,6.28107,1592.1,1591.8,6.28219]
[1744573850852,0.13567494,1591.9,1591.8,6.28219]
[1744573851187,6.28047,1592.3,1591.9,6.28163]
[1744573851386,0.02,1592.4,1591.9,6.34461022]
[1744573851550,0.02,1592.4,1592.2,6.28045]
[1744573851750,0.02,1592.4,1592.3,6.28022]
[1744573851951,0.02,1592.4,1592.3,6.34301812]
[1744573852165,0.02,1592.4,1592.3,0.06279812]
[1744573852489,0.02,1592.4,1592.3,6.34301577]
[1744573852691,0.02,1592.4,1592.3,7.89571577]
[1744573852994,0.02,1592.4,1592.3,8.52504277]
[1744573853294,0.02,1592.4,1592.3,7.89571577]
[1744573853454,0.02,1592.4,1592.3,8.0290738]
[1744573853788,6.29982,1592.4,1592.3,0.1961538]
[1744573854089,0.02,1592.4,1592.0,7.83392]
[1744573854279,0.02,1592.4,1591.9,3.0]
[1744573854280,12.56173,1592.2,1591.7,6.28229]
[1744573854449,6.28131,1592.1,1591.7,6.28252]
[1744573854653,6.28131,1592.1,1591.8,6.28216]
[1744573854889,6.28155,1592.0,1591.6,6.28279]
[1744573855097,6.28183,1591.9,1591.5,7.83597]
[1744573855260,6.28233,1591.8,1591.4,6.28366]
[1744573855489,12.56566,1591.7,1591.3,6.28414]
[1744573855685,6.28314,1591.6,1591.2,6.28438]
[1744573855878,6.28363,1591.5,1591.1,6.28492]
[1744573856081,6.28447,1591.3,1590.9,7.83844]
[1744573856283,6.28395,1591.4,1591.0,6.28519]
[1744573856582,7.29e-06,1591.3,1591.2,4.87411745]
[1744573856892,6.30017,1592.4,1592.3,6.28022]
[1744573856893,0.02,1592.4,1592.3,6.28022]
[1744573857099,0.02,1592.4,1592.3,11.15433745]
[1744573857294,6.6753675,1593.1,1592.5,6.27921]
[1744573857624,6.6753675,1593.1,1592.6,0.06277627]
[1744573857625,6.27792,1592.9,1592.6,0.06277627]
[1744573857805,6.27792,1592.9,1592.3,7.84872]
[1744573857806,3.0,1592.8,1592.3,1.5687]
[1744573858120,3.0,1592.8,1592.1,6.28065]
[1744573858121,12.55766,1592.7,1592.1,6.28065]
[1744573858321,6.27865,1592.7,1592.1,6.28065]
[1744573858631,6.27968,1592.5,1591.7,1.5687]
[1744573858924,6.28145,1592.0,1591.3,7.85251]
[1744573859111,6.28204,1591.9,1591.3,7.85251]
[1744573859287,3.0,1591.8,1591.3,7.85251]
[1744573859489,3.55,1592.0,1591.4,0.06282964]
[1744573859715,9.28154,1592.0,1591.4,7.07529396]
[1744573859881,11.524,1592.1,1591.6,6.28298]
[1744573860408,6.8313,1592.1,1591.4,6.28353]
[1744573860601,6.28205,1591.9,1591.4,6.28353]
[1744573860787,6.2822,1591.8,1591.3,7.85278]
[1744573860992,6.2826,1591.7,1591.2,6.28428]
[1744573861325,7.89653,1592.2,1591.6,6.28273]
[1744573861522,1.6157,1593.0,1591.7,1.5687]
[1744573861823,1.6157,1593.2,1592.9,6.27746]
[1744573862023,1.6157,1593.2,1592.9,6.34022989]
[1744573862198,1.6157,1593.2,1592.9,6.27746]
[1744573862594,7.89237,1593.2,1592.6,6.2787]
[1744573862804,6.27907,1592.6,1592.1,6.28081]
[1744573863113,6.2797,1592.5,1592.0,6.28131]
[1744573863618,6.27943,1592.5,1592.0,6.28131]
[1744573863919,6.27943,1592.5,1591.9,6.2817]
[1744573864119,6.27943,1592.5,1591.9,6.90987]
[1744573864311,12.55923,1592.5,1591.9,6.9097]
[1744573864819,0.3980875,1593.1,1592.4,1.5647]
[1744573865025,6.27746,1593.0,1592.4,1.5647]
[1744573865197,0.3980875,1593.1,1592.0,6.2814]
[1744573865198,6.27935,1592.6,1592.0,6.2814]
[1744573865400,6.27864,1592.8,1592.2,6.28035]
[1744573865599,6.27864,1592.8,1592.3,6.34298405]
[1744573865787,6.27948,1592.5,1591.9,2.19287]
[1744573865990,6.27948,1592.5,1592.0,6.28138]
[1744573866326,6.28005,1592.4,1591.9,8.47428]
[1744573866508,6.2805,1592.3,1591.7,11.702225]
[1744573866836,11.522,1592.5,1591.7,5.419905]
[1744573866837,6.28062,1592.2,1591.7,5.419905]
[1744573866994,6.28203,1591.9,1591.7,5.419905]
[1744573867194,11.521,1591.9,1591.7,5.419905]
[1744573867528,3.0,1592.1,1591.8,6.28219]
[1744573867733,3.0,1592.1,1591.6,6.28271]
[1744573868255,3.0,1592.1,1591.2,1.629]
[1744573868464,23.97191,1592.2,1591.4,9.28341]
[1744573868615,23.97191,1592.2,1591.6,6.28282]
[1744573868816,23.97191,1592.2,1591.7,6.34500698]
[1744573869016,6.28121,1592.1,1591.6,6.28297]
[1744573869268,6.28282,1591.7,1591.1,6.28493]
[1744573869434,24.08516,1591.9,1591.3,6.2839]
[1744573869630,17.80308,1591.9,1591.4,6.28353]
[1744573869947,1.5886,1592.0,1591.6,6.2826]
[1744573870254,7.8702,1592.0,1591.4,12.56703]
[1744573870456,1.5886,1592.0,1591.6,6.28275]
[1744573870622,7.87011,1592.0,1591.5,6.34610489]
[1744573870818,6.2818,1591.9,1591.2,6.28455]
[1744573871033,9.28256,1591.8,1591.2,6.28455]
[1744573871265,3.0,1591.8,1591.1,6.913443]
[1744573871553,4.5886,1592.0,1591.4,6.28377]
[1744573871857,6.28216,1591.9,1591.4,6.28377]
[1744573872068,6.28216,1591.9,1591.1,13.198003]
[1744573872069,6.28275,1591.7,1591.1,13.198003]
[1744573872272,6.28319,1591.6,1591.2,6.28452]
[1744573872465,7.94946,1591.4,1590.9,6.28551]
[1744573872641,11.522,1591.5,1591.1,6.28487]
[1744573872960,11.522,1591.5,1590.9,6.28553]
[1744573873139,12.662824,1591.9,1591.4,6.28377]
[1744573873338,3.0,1592.0,1591.2,7.92853]
[1744573873546,6.28102,1592.1,1591.6,6.28281]
[1744573873747,25.63914,1592.2,1591.7,6.28232]
[1744573873957,25.63914,1592.2,1591.8,6.28216]
[1744573874118,25.63914,1592.2,1591.7,6.28232]
[1744573874119,6.27984,1592.4,1591.7,6.28259]
[1744573874321,6.27984,1592.4,1591.9,6.28147]
[1744573874640,6.27984,1592.4,1591.9,6.28156]
[1744573874641,6.17,1592.4,1591.9,6.28156]
[1744573874840,12.45004,1592.4,1591.9,6.28156]
[1744573875040,12.45004,1592.4,1591.5,6.28316]
[1744573875041,6.28113,1592.1,1591.5,6.28316]
[1744573875241,6.28163,1592.0,1591.5,6.28316]
[1744573875443,6.28163,1592.0,1591.5,7.992912]
[1744573875762,6.28186,1591.9,1591.4,4.5285]
[1744573876074,6.2836,1591.5,1591.0,6.28516]
[1744573876218,6.28301,1591.6,1591.1,6.28462]
[1744573876418,6.283,1591.6,1591.2,0.06283594]
[1744573876654,3.0,1591.7,1591.2,0.19630715]
[1744573876854,9.28288,1591.7,1591.2,0.19630715]
[1744573877167,6.17,1591.8,1591.4,6.28338]
[1744573877328,12.45141,1592.0,1591.4,6.28338]
[1744573877524,6.28182,1591.9,1591.5,0.25912972]
[1744573877853,6.28279,1591.7,1591.5,0.19630715]
[1744573878075,6.28298,1591.6,1591.5,0.19630715]
[1744573878371,6.28223,1591.8,1591.5,0.19630715]
[1744573878573,12.45141,1592.0,1591.6,6.28283]
[1744573878877,6.28223,1591.8,1591.4,6.28353]
[1744573879072,6.28317,1591.6,1591.1,10.81326]
[1744573879372,6.28343,1591.5,1591.1,8.894586]
[1744573879682,6.28381,1591.4,1591.2,0.19629537]
[1744573880486,12.5671,1591.5,1591.2,0.19629537]
[1744573880662,6.28343,1591.5,1591.2,0.19629537]
[1744573880864,7.80829,1591.6,1591.2,6.28442]
[1744573881063,6.28339,1591.5,1591.1,6.28493]
[1744573881359,6.28339,1591.5,1591.1,6.34762459]
[1744573881689,6.28339,1591.5,1591.0,6.28525]
[1744573881875,1.5253,1591.6,1591.2,6.28442]
[1744573882076,1.5253,1591.6,1591.1,0.1963209]
[1744573882377,1.5064,1592.2,1591.6,6.28281]
[1744573882540,6.28142,1592.0,1591.5,6.28335]
[1744573882741,6.28184,1591.9,1591.4,6.28374]
[1744573882990,6.28142,1592.0,1591.5,0.1963209]
[1744573882991,6.28288,1591.7,1591.5,0.1963209]
[1744573883196,6.28298,1591.6,1591.5,0.1963209]
[1744573883892,6.28298,1591.6,1591.0,9.2853]
[1744573883893,6.28298,1591.6,1591.1,6.28494]
[1744573884097,6.28288,1591.7,1591.2,0.06283183]
[1744573884257,6.283,1591.6,1591.2,0.06283183]
[1744573884457,6.28378,1591.4,1590.9,14.10598]
[1744573884789,6.28378,1591.4,1591.0,0.06283818]
[1744573884989,6.28378,1591.4,1591.0,0.25916058]
[1744573885293,6.28434,1591.3,1591.0,1.1963224]
[1744573885587,6.28458,1591.2,1591.0,0.25916059]
[1744573885793,6.28411,1591.4,1591.0,0.1963224]
[1744573885957,6.28437,1591.3,1590.8,6.34884609]
[1744573886158,6.28437,1591.3,1590.8,7.6123647]
[1744573886384,6.2834,1591.5,1590.8,1.3263647]
[1744573886713,19.88101,1591.7,1590.9,0.19634978]
[1744573886714,6.28513,1591.1,1590.9,0.19634978]
[1744573887591,6.28513,1591.1,1590.6,7.82124]
[1744573887790,6.28513,1591.1,1590.3,11.16190745]
[1744573887791,1.5948,1591.1,1590.3,6.43211745]
[1744573887993,6.2871,1590.6,1590.1,0.02]
[1744573888199,6.28833,1590.3,1590.1,0.02]
[1744573888399,6.28851,1590.2,1590.1,0.02]
[1744573888711,17.83175,1590.4,1590.1,0.02]
[1744573888870,6.28851,1590.2,1590.1,0.02]
[1744573889073,5.98851,1590.2,1590.1,0.02]
[1744573889684,12.57657,1590.3,1590.1,0.02]
[1744573889999,13.00851,1590.2,1590.1,0.02]
[1744573890371,6.29009,1589.8,1589.7,5.419905]
[1744573890572,6.17,1589.8,1589.7,5.419905]
[1744573890975,12.46009,1589.8,1589.7,5.419905]
[1744573891389,24.55709,1589.8,1589.7,5.419905]
[1744573891714,6.29128,1589.5,1589.4,6.60263547]
[1744573892102,8.42878,1589.5,1589.4,6.60263547]
[1744573892584,11.42878,1589.5,1589.4,6.60263547]
[1744573893151,6.29202,1589.4,1589.1,0.02]
[1744573893448,0.750095,1589.3,1589.1,0.02]
[1744573893620,0.750095,1589.3,1589.1,6.31266]
[1744573893822,0.750095,1589.3,1589.1,0.02]
[1744573894416,0.750095,1589.3,1589.1,0.08291952]
[1744573894614,0.750095,1589.3,1589.1,0.02]
[1744573894822,6.29247,1589.2,1589.1,0.02]
[1744573895847,7.042335,1589.3,1589.1,0.02]
[1744573896051,0.750095,1589.3,1589.1,0.02]
[1744573896367,7.042245,1589.3,1589.1,0.02]
[1744573896936,0.750095,1589.3,1589.1,0.02]
[1744573897260,7.042245,1589.3,1589.1,0.02]
[1744573897627,13.334605,1589.3,1589.1,0.02]
[1744573897948,0.750095,1589.3,1589.1,0.02]
[1744573898342,6.29247,1589.2,1589.1,0.02]
[1744573898869,23.3539265,1589.2,1589.1,0.02]
[1744573899043,22.8039265,1589.2,1589.1,0.02]
[1744573899242,22.09967,1589.2,1589.1,0.02]
[1744573899544,0.750095,1589.3,1589.1,0.02]
[1744573899732,6.29185,1589.4,1589.1,0.02]
[1744573899933,6.29231,1589.3,1589.1,0.02]
[1744573900132,6.29247,1589.2,1589.1,0.02]
[1744573900463,6.29231,1589.3,1589.1,0.02]
[1744573900665,6.29168,1589.4,1589.1,0.02]
[1744573900865,53.941,1589.5,1589.1,0.02]
[1744573901032,6.29203,1589.4,1589.1,0.02]
[1744573901474,12.58402,1589.4,1589.1,0.02]
[1744573901640,60.23229,1589.5,1589.1,0.02]
[1744573901845,6.29247,1589.2,1589.1,0.02]
[1744573902040,17.51847,1589.2,1589.1,0.02]
[1744573902242,21.06847,1589.2,1589.1,0.02]
[1744573902447,22.61277,1589.2,1589.1,0.02]
[1744573902644,6.29495,1588.6,1588.2,1.6043]
[1744573902845,6.2956,1588.5,1588.2,1.6043]
[1744573903033,0.750095,1588.5,1588.1,0.05]
[1744573903233,6.2964,1588.3,1588.1,0.05]
[1744573903459,6.29643,1588.2,1588.1,0.05]
[1744573904080,6.84643,1588.2,1588.1,0.05]
[1744573904299,18.07343,1588.2,1588.1,0.05]
[1744573904580,17.52343,1588.2,1588.1,0.05]
[1744573904769,18.07343,1588.2,1588.1,0.05]
[1744573905154,25.684311,1588.2,1588.1,0.05]
[1744573905571,13.907311,1588.2,1588.1,0.05]
[1744573905777,9.29643,1588.2,1588.1,0.05]
[1744573906005,6.29643,1588.2,1588.1,0.05]
[1744573906369,23.81959,1588.3,1588.1,0.05]
[1744573906701,6.29643,1588.2,1588.1,0.05]
[1744573908096,6.84643,1588.2,1588.1,0.05]
[1744573908399,9.283391,1588.2,1588.1,0.05]
[1744573908766,6.84643,1588.2,1588.1,0.05]
[1744573908976,6.29643,1588.2,1588.1,0.05]
[1744573910119,6.84643,1588.2,1588.1,0.05]
[1744573911493,17.52318,1588.3,1588.1,0.05]
[1744573911713,6.29643,1588.2,1588.1,0.05]
[1744573912674,12.308012,1588.2,1588.1,0.05]
[1744573913078,9.29643,1588.2,1588.1,0.05]
[1744573913293,6.29618,1588.3,1588.1,0.05]
[1744573913499,6.29643,1588.2,1588.1,0.05]
[1744573917236,9.84643,1588.2,1588.1,0.05]
[1744573918211,11.41203,1588.2,1588.1,1e-05]
[1744573918419,13.67026275,1588.2,1588.1,1e-05]
[1744573918610,13.67026275,1588.2,1587.1,6.3507]
[1744573918611,6.29964,1587.4,1587.1,6.3507]
[1744573918809,6.30005,1587.3,1587.1,0.05]
[1744573919142,11.29899789,1587.5,1586.8,3.0]
[1744573919337,11.29899789,1587.5,1586.1,0.05]
[1744573919338,6.302,1586.8,1586.1,0.05]
[1744573919495,0.06299789,1586.7,1586.3,6.30374]
[1744573919693,0.06299789,1586.8,1586.5,6.30302]
[1744573919906,0.54263147,1587.3,1586.8,6.3017]
[1744573920120,0.54263147,1587.3,1586.4,1.5765]
[1744573920121,1.62859789,1587.5,1586.9,0.0630122]
[1744573920310,1.62859789,1587.5,1586.5,6.30311]
[1744573920311,6.30157,1587.0,1586.5,6.30311]
[1744573920517,6.30181,1586.9,1586.4,7.87983]
[1744573920724,6.30181,1586.9,1586.5,0.063021]
[1744573920725,6.30215,1586.8,1586.5,0.063021]
[1744573920934,0.06299789,1587.0,1586.5,0.8573061]
[1744573921104,3.0,1587.1,1586.7,6.30217]
[1744573921433,9.30097,1587.1,1586.7,6.30217]
[1744573921608,6.30058,1587.2,1586.7,6.30217]
[1744573921804,6.3016,1586.9,1586.5,6.30286]
[1744573922217,0.06299789,1586.8,1586.4,1.5765]
[1744573922418,6.30339,1586.5,1586.1,1.6265]
[1744573922822,12.60695,1586.5,1586.1,1.6265]
[1744573923200,6.36672789,1586.4,1586.1,1.6265]
[1744573923444,6.3043,1586.3,1586.1,0.05]
[1744573923610,0.06299789,1586.4,1586.1,0.05]
[1744573923808,12.66997789,1586.5,1586.1,6.35461]
[1744573924009,6.30421,1586.3,1586.1,0.05]
[1744573924221,0.06299789,1586.2,1586.1,0.05]
[1744573924539,2.02884917,1586.5,1586.1,12.65919]
[1744573924540,6.30335,1586.5,1586.1,12.65919]
[1744573924750,6.36583789,1586.6,1586.1,1.370919]
[1744573924905,6.30325,1586.5,1586.1,7.675629]
[1744573925108,6.30325,1586.5,1586.1,13.980199]
[1744573925344,6.30437,1586.2,1586.1,0.05]
[1744573925705,6.36736789,1586.2,1586.1,0.05]
[1744573926249,6.85327,1586.5,1586.1,6.35475]
[1744573926250,0.06299789,1586.4,1586.1,6.35475]
[1744573926451,6.76357396,1586.7,1586.2,6.36713362]
[1744573926743,6.76357396,1586.7,1586.2,6.3042]
[1744573926744,6.30293,1586.6,1586.2,6.3042]
[1744573926905,6.30293,1586.6,1586.2,6.30418]
[1744573927244,6.36636789,1586.5,1586.1,6.35476]
[1744573927407,0.06299789,1586.7,1586.4,6.30358]
[1744573927601,6.3024,1586.7,1586.3,6.30385]
[1744573927807,6.3024,1586.7,1586.3,12.60766]
[1744573928021,6.36539789,1586.7,1586.3,12.60764]
[1744573928307,0.06299789,1586.7,1586.4,6.30357]
[1744573928632,0.06299789,1586.7,1586.3,6.30381]
[1744573928633,6.36538789,1586.7,1586.3,6.30381]
[1744573928811,6.36538789,1586.7,1586.1,0.05]
[1744573928812,6.30308,1586.6,1586.1,6.35474]
[1744573929006,6.30308,1586.6,1584.1,0.05]
[1744573929007,7.88669,1584.9,1584.1,0.05]
[1744573929219,0.2,1584.4,1584.1,0.05]
[1744573929517,0.2,1584.3,1584.1,0.05]
[1744573929944,6.51233,1584.2,1584.1,0.05]
[1744573930249,7.794794,1584.2,1584.1,0.05]
[1744573930547,6.51233,1584.2,1584.1,0.05]
[1744573930951,10.06432,1583.7,1583.6,7.5e-06]
[1744573931123,9.51592,1583.3,1583.2,5.18e-06]
[1744573931331,10.12891789,1583.3,1583.2,5.18e-06]
[1744573931630,7.06831,1582.7,1582.0,0.3980875]
[1744573931848,7.13130789,1582.7,1582.0,0.3980875]
[1744573932347,6.58130789,1582.7,1582.0,0.3980875]
[1744573932512,0.26299789,1582.7,1582.1,21.0749072]
[1744573932716,0.2,1582.8,1582.4,6.77972]
[1744573932913,0.2,1582.8,1582.4,0.4606]
[1744573933210,6.51876,1582.6,1582.1,0.05]
[1744573933409,6.51876,1582.6,1582.1,0.77295375]
[1744573933410,0.2,1582.5,1582.1,0.77295375]
[1744573933614,0.2,1582.8,1582.4,6.31932]
[1744573933811,0.2,1582.7,1582.5,0.06318386]
[1744573934043,0.2,1582.8,1582.3,6.31991]
[1744573934382,0.2,1582.8,1582.1,0.05]
[1744573934383,6.51998,1582.3,1582.1,0.05]
[1744573934527,7.13330789,1582.2,1582.1,0.05]
[1744573934730,6.52331,1581.5,1580.8,6.78626]
[1744573934922,0.06299789,1581.4,1580.8,6.78626]
[1744573935119,0.2,1581.2,1580.8,0.4606]
[1744573935318,0.2,1581.7,1581.2,6.32399]
[1744573935638,0.2,1581.5,1581.2,6.32429]
[1744573935956,0.2,1581.4,1581.1,6.43770778]
[1744573936168,0.2,1581.2,1581.1,0.05]
[1744573936320,6.52631,1580.7,1580.6,10.3414799]
[1744573936522,6.58930789,1580.7,1580.6,10.5886265]
[1744573936710,0.26299789,1580.7,1580.6,10.5886265]
[1744573937115,0.2,1581.3,1581.0,6.32473]
[1744573937367,0.26299789,1581.7,1581.6,6.32271]
[1744573937529,0.06299789,1581.9,1581.7,6.32231]
[1744573937731,0.2,1582.1,1581.5,6.32307]
[1744573937732,0.2,1582.1,1581.9,6.32115]
[1744573938039,0.2,1582.0,1581.8,6.32191]
[1744573938244,0.06299789,1582.1,1582.0,6.32111]
[1744573938440,0.2,1582.3,1582.2,6.32031]
[1744573938658,1.86889789,1582.6,1582.3,6.31991]
[1744573938962,0.2,1582.4,1582.3,6.3197]
[1744573939131,0.2,1582.4,1582.2,6.32019]
[1744573939462,0.2,1582.3,1582.0,6.32083]
[1744573939627,0.2,1582.3,1582.2,6.32007]